Cogmind - Beta 13 @@@ ROGUE MODE // 2024.04.20 @ 10:37:00 Player: Gafrankl Result: Destroyed by X-62 Marksman with Pulse Rifle Performance ------------- Evolutions (3) 1500 Regions Visited (7) 1400 Robots Destroyed (27) 135 Value Destroyed (904) 904 Prototype IDs (1) 20 Alien Tech Used (0) 0 Bonus (800) 800 TOTAL SCORE: 4759 Bonus ------- Entered DSFs 500 Aligned with FarCom 300 Cogmind --------- Core Integrity 0/700 Matter 27/300 Energy 100/100 System Corruption 9% Temperature Cool (9) Movement Core (350) Ox6 Location -7/DSF Parts ------- > --- POWER (2) -------- (None) > --- PROPULSION (4) --- (None) > --- UTILITY (4) ------ Large Storage Unit > --- WEAPON (3) ------- (None) > --- INVENTORY (15) --- Improved Ion Engine Flight Unit Flight Unit Improved Heat Sink Machine Analyzer Hardlight Generator Trap Reconfigurator Peak State ------------ > --- POWER ------------ Deuterium Engine Deuterium Engine > --- PROPULSION ------- Light Treads Improved Treads Improved Treads Improved Treads > --- UTILITY ---------- Improved Heat Sink Large Storage Unit Improved Terrain Scan Processor Trap Reconfigurator > --- WEAPON ----------- Autogun Minigun Flak Cannon > --- INVENTORY -------- Improved Ion Engine Deuterium Engine Deuterium Engine Light Nuclear Core Light Treads Flight Unit Flight Unit Machine Analyzer Hardlight Generator Field Laser Heavy Particle Cannon Autogun Missile Launcher [Rating: 40] Favorites ----------- Power Deuterium Engine Engine Deuterium Engine Power Core Light Nuclear Core Propulsion Improved Treads Treads Improved Treads Flight Unit Flight Unit Utility Salvage Targeting Computer Device Improved Heat Sink Storage Large Storage Unit Processor Salvage Targeting Computer Hackware Hacking Suite Protection Improved Medium Armor Plating Weapon Small Laser Energy Gun Small Laser Energy Cannon Heavy Particle Cannon Ballistic Gun Minigun Ballistic Cannon Flak Cannon Launcher Missile Launcher Build | -11 -10 -10 -10 -9 -8 -7 -7 ------- Run | Yrd Mat Min Exi Min Mat Fac DSF Slots Evolved 6 | . . . . . 4 2 . Power 1 | . . . . . 1 . . Propulsion 2 | . . . . . 2 . . Utility 2 | . . . . . 1 1 . Weapon 1 | . . . . . . 1 . Parts Attached 59 | 6 1 3 1 2 28 2 16 Power 9 | 1 . . . . 5 . 3 Engine 6 | 1 . . . . 3 . 2 Core 3 | . . . . . 2 . 1 Reactor . | . . . . . . . . Propulsion 16 | 2 . 2 . . 10 . 2 Treads 12 | 2 . . . . 8 . 2 Leg . | . . . . . . . . Wheel . | . . . . . . . . Hover . | . . . . . . . . Flight 4 | . . 2 . . 2 . . Utility 15 | 1 1 . 1 1 3 1 7 Device 3 | . . . 1 . 1 1 . Storage 3 | 1 1 . . . 1 . . Processor 2 | . . . . 1 . . 1 Hackware 1 | . . . . . 1 . . Protection 6 | . . . . . . . 6 Artifact . | . . . . . . . . Weapon 19 | 2 . 1 . 1 10 1 4 Energy Gun 6 | 2 . . . 1 2 . 1 Energy Cannon 1 | . . . . . . . 1 Ballistic Gun 7 | . . 1 . . 4 1 1 Ballistic Cannon 2 | . . . . . 2 . . Launcher 3 | . . . . . 2 . 1 Special Weapon . | . . . . . . . . Impact Weapon . | . . . . . . . . Slashing Weapon . | . . . . . . . . Piercing Weapon . | . . . . . . . . Special Melee Weapon . | . . . . . . . . Unidentified Prototypes 1 | . . . 1 . . . . Parts Lost 32 | . . 2 . . 7 . 23 Power 7 | . . . . . 2 . 5 Propulsion 10 | . . 1 . . 3 . 6 Utility 7 | . . . . . 1 . 6 Weapon 8 | . . 1 . . 1 . 6 Highest Loss Streak 23 | . . 2 . . 5 . 23 To Critical Strikes 1 | . . . . . . . 1 Average Slot Usage (%) 85 | . 85 78 76 85 89 100 72 Engine 13 | . 14 14 14 14 14 15 9 Treads 23 | . 28 14 . . 27 30 17 Flight 6 | . . 12 28 28 4 . . Device 7 | . . . 5 14 10 15 7 Storage 5 | . 14 8 . . 4 7 7 Processor 5 | . . . . 3 9 7 3 Energy Gun 7 | . 28 20 14 10 2 . . Ballistic Gun 8 | . . 7 14 14 9 15 8 Ballistic Cannon 1 | . . . . . . 7 5 Launcher 2 | . . . . . 3 . 1 Naked Turns . | . . . . . . . . Heaviest Build 68 | 12 27 27 8 8 48 52 68 Greatest Support 89 | 40 40 40 8 8 89 89 89 Greatest Overweight (x) 12 | . . 6 . . 3 . 12 Average Overweight (x) . | . . . . . . . . Largest Inventory Capacity 15 | 8 15 15 5 5 15 15 15 Average Capacity 10 | 7 14 11 5 5 9 15 15 Most Carried 15 | 2 1 2 2 5 15 14 15 Average Carried 6 | . 1 1 2 3 8 13 11 Final Capacity 15 | 8 15 5 5 5 15 15 15 Final Carried 15 | 1 1 2 2 5 15 13 7 Class Distribution -------------------- 87% | Mutant 6% | Scavenger-Mutant 6% | Skirmisher Dominant Class ---------------- Mutant | -10/Materials Mutant | -10/Mines Mutant | -10/Exiles Mutant | -9/Mines Mutant | -8/Materials Mutant | -7/Factory Mutant | -7/DSF Resources | -11 -10 -10 -10 -9 -8 -7 -7 ----------- Run | Yrd Mat Min Exi Min Mat Fac DSF Matter Collected 798 | 232 38 30 . 10 415 . 73 Remotely . | . . . . . . . . Salvage Created 1084 | . 135 32 . . 636 . 281 Parts 65 | . 4 4 . . 38 . 19 Haulers Intercepted . | . . . . . . . . Recyclers Shooed 1 | . . . . . 1 . . Parts Field Recycled . | . . . . . . . . Retrieved Matter . | . . . . . . . . Parts Self-Destructed . | . . . . . . . . Prevented . | . . . . . . . . Kills | -11 -10 -10 -10 -9 -8 -7 -7 ------- Run | Yrd Mat Min Exi Min Mat Fac DSF Combat Hostiles Destroyed 25 | . 3 2 . . 17 . 3 Guns 17 | . 3 2 . . 12 . . Cannons 3 | . . . . . 2 . 1 AOE 5 | . . . . . 3 . 2 Classes Destroyed 7 | . 1 1 . . 4 . 1 Builder 1 | . . . . . 1 . . Watcher 1 | . . . . . 1 . . Swarmer 9 | . . 2 . . 7 . . Grunt 9 | . 3 . . . 5 . 1 Sentry 4 | . . . . . 3 . 1 Specialist 1 | . . . . . . . 1 Hunter 2 | . . . . . 2 . . Best Kill Streak 7 | . 2 2 . . 7 . 3 Combat Bots Only 5 | . 2 2 . . 5 . 3 Max Kills in Single Turn 5 | . 1 1 . . 5 . 1 Gunslinging . | . . . . . . . . Exploded 3 | . . . . . 3 . 1 Melee . | . . . . . . . . Uniques/NPCs Destroyed . | . . . . . . . . Combat | -11 -10 -10 -10 -9 -8 -7 -7 -------- Run | Yrd Mat Min Exi Min Mat Fac DSF Hostile Shots Fired 462 | . 42 21 . . 123 . 276 Missed 129 | . 15 7 . . 29 . 78 Damage Taken 5472 | . 364 111 . . 1344 . 3653 Core 1062 | . 67 38 . . 256 . 701 Absorbed by Shields . | . . . . . . . . Core Remaining (%) 70 | 100 . . . 58 53 . . Volleys Fired 103 | . 21 5 . . 57 . 20 Largest 3 | . 2 2 . . 2 . 3 Hottest 119 | . 80 80 . . 83 . 119 Shots Fired 186 | . 42 6 . . 105 . 33 Gun 147 | . 42 6 . . 92 . 7 Cannon 32 | . . . . . 10 . 22 Launcher 7 | . . . . . 3 . 4 Special . | . . . . . . . . Kinetic 104 | . . . . . 85 . 19 Thermal 75 | . 42 6 . . 17 . 10 Explosive 7 | . . . . . 3 . 4 Electromagnetic . | . . . . . . . . Robot Hit Streak 8 | . 8 3 . . 6 . 7 Robot Miss Streak 5 | . 3 1 . . 5 . 5 Penetration Max . | . . . . . . . . Secondary Targets 1 | . . . . . 1 . . Max Gunslinging Chain 1 | . . . . . 1 . . Shots Hit Robots 119 | . 28 4 . . 69 . 18 Core Hits 88 | . 10 2 . . 50 . 26 Critical Kills . | . . . . . . . . Critical Parts Destroyed . | . . . . . . . . Critical Strikes 1 | . . . . . 1 . . Burn 1 | . . . . . 1 . . Melee Attacks . | . . . . . . . . Impact . | . . . . . . . . Slashing . | . . . . . . . . Piercing . | . . . . . . . . Sneak Attacks . | . . . . . . . . Combat Hostiles . | . . . . . . . . Follow-up Attacks . | . . . . . . . . Damage Inflicted 2609 | . 309 54 . . 1216 . 1030 Guns 1194 | . 309 54 . . 750 . 81 Cannons 610 | . . . . . 161 . 449 Explosions 805 | . . . . . 305 . 500 Melee . | . . . . . . . . Ramming . | . . . . . . . . Kinetic 1022 | . . . . . 692 . 330 Thermal 782 | . 309 54 . . 219 . 200 Explosive 805 | . . . . . 305 . 500 Electromagnetic . | . . . . . . . . Impact . | . . . . . . . . Slashing . | . . . . . . . . Piercing . | . . . . . . . . Highest Corruption 9 | . . . . . . . 9 Average Corruption 6 | . . . . . . . 6 Corruption Purged . | . . . . . . . . Corruption Blocked . | . . . . . . . . Effects 1 | . . . . . . . 1 Energy Discharges 1 | . . . . . . . 1 Overload Shots . | . . . . . . . . Overflow Damage . | . . . . . . . . Projectiles . | . . . . . . . . Explosions . | . . . . . . . . Melee . | . . . . . . . . Knockbacks 4 | . . . . . 2 . 2 Impact . | . . . . . . . . Kinetic 4 | . . . . . 2 . 2 Secondary . | . . . . . . . . Self-Inflicted Damage 124 | . . . . . 124 . . Shots 3 | . . . . . 3 . . Rammed . | . . . . . . . . Targets Rammed . | . . . . . . . . Kicked . | . . . . . . . . Crushed . | . . . . . . . . Highest Temperature 389 | . 237 18 . . 389 . 126 Average Temperature 88 | . 100 16 . . 97 . 58 Received Heat Transfer 1677 | . 210 . . . 360 . 1107 Effects 1 | . . . . . 1 . . Shutdowns 1 | . . . . . 1 . . Siege Activations . | . . . . . . . . Robots Corrupted . | . . . . . . . . Combat Hostiles . | . . . . . . . . Parts Fried . | . . . . . . . . Impact Corruptions . | . . . . . . . . Robots Melted . | . . . . . . . . Combat Hostiles . | . . . . . . . . Parts Melted 2 | . 1 . . . 1 . . Heat Transferred 1676 | . 700 125 . . 555 . 296 Parts Sabotaged . | . . . . . . . . Parts Stolen . | . . . . . . . . Parts Stripped . | . . . . . . . . Power Chain Reactions . | . . . . . . . . Alert | -11 -10 -10 -10 -9 -8 -7 -7 ------- Run | Yrd Mat Min Exi Min Mat Fac DSF Peak Influence 189 | . 110 72 . . 189 67 140 Initial 62 | . . 42 . . . 62 46 Average 43 | . 40 56 . . 45 62 58 Maximum Alert Level . | . . . . . . . . Low Security (%) 100 | 100 100 100 . 100 100 100 100 Level 1 . | . . . . . . . . Level 2 . | . . . . . . . . Level 3 . | . . . . . . . . Level 4 . | . . . . . . . . Level 5 . | . . . . . . . . High Security . | . . . . . . . . Max Security . | . . . . . . . . Squads Dispatched 6 | . . . . . 4 . 2 Investigation 2 | . . . . . 2 . . Extermination . | . . . . . . . . Reinforcement 4 | . . . . . 2 . 2 Assault . | . . . . . . . . Garrison . | . . . . . . . . Intercept . | . . . . . . . . Searches Triggered . | . . . . . . . . Construction Impeded . | . . . . . . . . Haulers Reinforced . | . . . . . . . . Active Scanning Responses . | . . . . . . . . Cargo Convoy Interrupts . | . . . . . . . . Stealth | -11 -10 -10 -10 -9 -8 -7 -7 --------- Run | Yrd Mat Min Exi Min Mat Fac DSF Distress Signals 3 | . . . . . 3 . . Communications Jammed . | . . . . . . . . Distress Signals . | . . . . . . . . Times Spotted 54 | . 9 3 . . 29 . 13 Peak Tracking Total 7 | . 5 3 . . 7 . 7 Tactical Retreats 4 | . . . . . 1 . 3 Traps | -11 -10 -10 -10 -9 -8 -7 -7 ------- Run | Yrd Mat Min Exi Min Mat Fac DSF Traps Triggered 3 | . . . . . 2 . 1 Indirectly . | . . . . . . . . Trap Hack Attempts . | . . . . . . . . Triggered . | . . . . . . . . Disarmed . | . . . . . . . . Reprogrammed . | . . . . . . . . Reused . | . . . . . . . . Traps Reconfigurated 5 | . . . . . 1 . 4 Traps Extracted . | . . . . . . . . Installed . | . . . . . . . . Triggered . | . . . . . . . . Machines | -11 -10 -10 -10 -9 -8 -7 -7 ---------- Run | Yrd Mat Min Exi Min Mat Fac DSF Machines Disabled 1 | . . . . . 1 . . Max in Single Turn 1 | . . . . . 1 . . Machines Repaired . | . . . . . . . . Machines Dismantled . | . . . . . . . . Machines Sabotaged . | . . . . . . . . Overloaded Fab Kills . | . . . . . . . . Hacking | -11 -10 -10 -10 -9 -8 -7 -7 --------- Run | Yrd Mat Min Exi Min Mat Fac DSF Machines Accessed 6 | . 1 . . . 4 1 . Terminals 6 | . 1 . . . 4 1 . Fabricators . | . . . . . . . . Repair Stations . | . . . . . . . . Recycling Units . | . . . . . . . . Scanalyzers . | . . . . . . . . Garrison Access . | . . . . . . . . Total Hacks 12 | . 1 . . . 10 1 . Successful 3 | . . . . . 2 1 . Failed 9 | . 1 . . . 8 . . Catastrophic 4 | . 1 . . . 3 . . Database Lockouts . | . . . . . . . . Manual 9 | . 1 . 1 . 6 1 . Terminals 12 | . 1 . . . 10 1 . Fabricators . | . . . . . . . . Repair Stations . | . . . . . . . . Recycling Units . | . . . . . . . . Scanalyzers . | . . . . . . . . Garrison Access . | . . . . . . . . Terminal Hacks 3 | . . . . . 2 1 . Record 2 | . . . . . 2 . . Open DSF 1 | . . . . . . 1 . Fabricator Hacks . | . . . . . . . . Repair Station Hacks . | . . . . . . . . Recycling Unit Hacks . | . . . . . . . . Scanalyzer . | . . . . . . . . Garrison Access Hacks . | . . . . . . . . Unauthorized Hacks . | . . . . . . . . Terminals . | . . . . . . . . Fabricators . | . . . . . . . . Repair Stations . | . . . . . . . . Recycling Units . | . . . . . . . . Scanalyzers . | . . . . . . . . Garrison Access . | . . . . . . . . Data Cores Recovered . | . . . . . . . . Used . | . . . . . . . . Hacking Detections 4 | . 1 . . . 3 . . Full Trace Events . | . . . . . . . . Feedback Events . | . . . . . . . . Feedback Blocked . | . . . . . . . . Robot Schematics Acquired . | . . . . . . . . Robots Built . | . . . . . . . . Authchips . | . . . . . . . . Time . | . . . . . . . . Total Robot Build Rating . | . . . . . . . . Part Schematics Acquired . | . . . . . . . . Parts Built . | . . . . . . . . Authchips . | . . . . . . . . Time . | . . . . . . . . Total Part Build Rating . | . . . . . . . . Parts Repaired . | . . . . . . . . Time . | . . . . . . . . Parts Recycled . | . . . . . . . . Recycled Matter . | . . . . . . . . Retrieved Matter . | . . . . . . . . Retrieved Components . | . . . . . . . . Parts Scanalyzed . | . . . . . . . . Part Schematics Acquired . | . . . . . . . . Parts Damaged . | . . . . . . . . Bothacking | -11 -10 -10 -10 -9 -8 -7 -7 ------------ Run | Yrd Mat Min Exi Min Mat Fac DSF Used RIF Installer . | . . . . . . . . Robots Hacked . | . . . . . . . . Non-combat . | . . . . . . . . Combat . | . . . . . . . . Robot Hacks Applied . | . . . . . . . . Relay Couplers Released . | . . . . . . . . Fabnet Peak Effective % . | . . . . . . . . Robots Rewired . | . . . . . . . . Allies Hacked . | . . . . . . . . Hacks Repelled . | . . . . . . . . Allies | -11 -10 -10 -10 -9 -8 -7 -7 -------- Run | Yrd Mat Min Exi Min Mat Fac DSF Total Allies 3 | . . . . 3 . . . Largest Group 3 | . . . . 3 . . . Highest-Rated Group 40 | . . . . 40 . . . Highest-Rated Ally 16 | . . . . 16 . . . Total Orders . | . . . . . . . . Ally Attacks . | . . . . . . . . Total Damage . | . . . . . . . . Kills . | . . . . . . . . Allies Corrupted . | . . . . . . . . Allies Melted . | . . . . . . . . Intel | -11 -10 -10 -10 -9 -8 -7 -7 ------- Run | Yrd Mat Min Exi Min Mat Fac DSF Robot Analysis Total . | . . . . . . . . Derelict Logs Recovered . | . . . . . . . . Drone Launches . | . . . . . . . . Drone Recoveries . | . . . . . . . . Exploration | -11 -10 -10 -10 -9 -8 -7 -7 ------------- Run | Yrd Mat Min Exi Min Mat Fac DSF Turns Passed 2244 | 99 284 156 108 73 1266 17 241 Spaces Moved 1728 | 57 137 202 288 181 771 10 82 Core 9 | 1 . . . . 2 . 6 Treads 784 | 56 137 43 . . 462 10 76 Legs . | . . . . . . . . Wheels . | . . . . . . . . Hover . | . . . . . . . . Flight 935 | . . 159 288 181 307 . . Fastest Speed 37 | 50 160 37 37 37 37 160 160 Average Speed 95 | 158 160 68 37 37 111 160 193 Slowest Speed 650 | 160 160 540 37 37 200 160 650 Overloaded Moves . | . . . . . . . . Propulsion Burnouts . | . . . . . . . . Robots Hopped 6 | . . 4 . 2 . . . Cave-ins Triggered . | . . . . . . . . Exploration Rate (%) 39 | 5 29 53 60 40 39 . 52 Regions Visited 7 Branch Regions 3 Pre-discovered Areas . | . . . . . . . . Known Exits Taken 1 | . . . . . . 1 . Unknown Exits Taken 6 | 1 1 1 1 1 1 . . Scrap Searched 2 | . . 1 . 1 . . . Spaces Dug . | . . . . . . . . Terrain Destroyed 57 | . . . . . 38 . 19 Melee . | . . . . . . . . Projectile . | . . . . . . . . AOE 57 | . . . . . 38 . 19 Terrain Rammed . | . . . . . . . . Walls Destroyed . | . . . . . . . . Machines Disabled . | . . . . . . . . Actions | -11 -10 -10 -10 -9 -8 -7 -7 --------- Run | Yrd Mat Min Exi Min Mat Fac DSF Total 2126 | 64 160 207 288 183 1082 11 131 Wait 215 | . 1 . . . 205 . 9 Move 1709 | 56 136 193 287 176 770 9 82 Hop 6 | . . 4 . 2 . . . Pick Up 20 | 2 . 1 . 2 12 . 3 Fast Attach 28 | 5 1 2 1 1 13 . 5 Attach 15 | 1 . . . . 4 2 8 Detach 3 | . . . . . 2 . 1 Swap 16 | . . 1 . 1 11 . 3 Drop 11 | . 1 1 . 1 8 . . Fire 103 | . 21 5 . . 57 . 20 Melee . | . . . . . . . . Ram . | . . . . . . . . Kick . | . . . . . . . . Crush . | . . . . . . . . Escape Stasis . | . . . . . . . . Rewire . | . . . . . . . . Trap . | . . . . . . . . Miscellaneous . | . . . . . . . . Route ------- -11/Scrapyard -10/Materials -10/Mines -10/Exiles -9/Mines -8/Materials -7/Factory -7/DSF History --------- Turn | Location | Event 13 | -11/Scrapyard | Discovered new exit (range 16) 100 | -11/Scrapyard | Entered Materials 310 | -10/Materials | Build established: Mutant 360 | -10/Materials | Discovered new exit (range 15) 384 | -10/Materials | Entered Mines 494 | -10/Mines | Assembled infested the area 538 | -10/Mines | Deemed a non-threat by the Exiles lab entrance 538 | -10/Mines | Discovered new exit (range 5) 540 | -10/Mines | Entered Exiles 553 | -10/Exiles | Met 8R-AWN 561 | -10/Exiles | Met EX-HEX 576 | -10/Exiles | Met EX-BIN 583 | -10/Exiles | Aligned with FarCom system 584 | -10/Exiles | Given EX-Vault access code 595 | -10/Exiles | Opened EX-Vault 602 | -10/Exiles | Found Prototype Device 602 | -10/Exiles | Identified Trap Reconfigurator 612 | -10/Exiles | Warned to stay clear of 0b10 Research branches 624 | -10/Exiles | Met EX-DEC 642 | -10/Exiles | Discovered new exit (range 14) 648 | -10/Exiles | Left Exiles lab with Trap Reconfigurator 648 | -10/Exiles | Entered Mines 671 | -9/Mines | Assisted by bots powering up and referring to "LRC-V3" 714 | -9/Mines | Discovered new exit (range 16) 721 | -9/Mines | Entered Materials 721 | -8/Materials | Evolved 4 slots: Power x1, Propulsion x2, Utility x1 1006 | -8/Materials | Lost 5 parts (1p3n1w) 1966 | -8/Materials | Discovered new exit (range 7) 1987 | -8/Materials | Entered Factory 1987 | -7/Factory | Evolved 2 slots: Utility x1, Weapon x1 2002 | -7/Factory | Identified exit to DSF 2004 | -7/Factory | Entered DSF 2074 | -7/DSF | Additional patrols routed to DSF 2228 | -7/DSF | Core integrity fell below 50% 2240 | -7/DSF | Core integrity fell below 20% 2245 | -7/DSF | Destroyed by X-62 Marksman with Pulse Rifle Last Messages --------------- Flak Cannon destroyed. System corrupted by crushing effect (+3). Penetrated by Slug. Field Laser destroyed. Penetrated by Slug. Critical hit (Smash). Deuterium Engine destroyed. System corrupted by crushing effect (+4). Acquired 9 matter. The unstable cave ceiling collapses. Imp. Medium Armor Plating destroyed. Slug penetrates Earth. Imp. Medium Armor Plating destroyed. Autogun destroyed. Knocked back. System corrupted: Energy discharge (-34). Slug penetrates Earth. Penetrated by Slug. Knocked back. Critical hit (Burn: +37). Map ----- +----------------------------------------------------+ | | | | | | | | | | | | | ??????????????????????????????????? | | ??????????????????????????????????? | | ??????????????????????????????????? | | ?????????##???????????????????????? | | ?????????""#??????????????????????? | | ?????????#"#??????????????????????? | | ??????####"##???????#########?????? | | ??????#"""""#########!! #?????? | | ??????#"""""##!!# #!! #?????? | | ????"##"" #?????? | | ????""""" #?????? | | ????###"" ##!!#!!!### ###?????? | | ??????### ###!!#!!!#?# #???????? | | ???????## ##########? ??????? | | ???????#! !#???????? #?????? | | ???????#! !!#???????? #?????? | | ???????## g###????????" ###?????? | | ???????#! !!#???????]] !???????? | | ???????#! !!###?????]] !!??????? | | ???????#! @g!# #?????]] !!??????? | | ??????### #%;%######## ###?????? | | ?????##!!gb#" [ ;!!!# = #???????? | | ?????#;!!g ;# ;!!!# %! #??????? | | ?????## ^H % %% *! %! ???? | | ?? ; [ * ???? | | ??##### x % = %*%" ????? | | ??????#!! ##!!!#!!! #%= ="# !????? | | ??????#!! ##!!!#!!!# #%![# ?????? | | ??????############### = # ?????? | | ?????????????????????? ]] ?????? | | ??????????????????????? ]]??????? | | ???????????????????????? ]]??????? | | ????????????????????????? #???????? | | ??????????????????????????????????? | | ??????????????????????????????????? | | ??????????????????????????????????? | | ??????????????????????????????????? | | ??????????????????????????????????? | | ??????????????????????????????????? | | ??????????????????????????????????? | | ??????????????????????????????????? | | ??????????????????????????????????? | | ??????????????????????????????????? | | ??????????????????????????????????? | +----------------------------------------------------+ Best States ------------- Heat Dissipation 48 Energy Generation 23 Energy Capacity 450 Matter Stores 300 Matter Capacity 300 Sight Range 16 Terrain Scan Density 110 Armor Coverage 675 Evasion (%) 62 Recoil Reduction 4 Salvage Targeting 1 Offensive Hacking 10 Item Schematics ----------------- None Robot Schematics ------------------ None Fabricated ------------ Nothing Alien Tech Used ----------------- None Achievements -------------- Let's See Who's Tougher Oops Challenges ------------ None Game ------ Seed CommTimingSpecial Manual? 0 Play Time 00:26:40 Cumulative 4.8 hours Start 2024.04.20 @ 10:11:30 End 2024.04.20 @ 10:37:00 Sessions 1 Manual Loads 0 Difficulty Rogue Special Mode None Game No. 7 Rogue 7 Adventurer 0 Explorer 0 Win Type - Total 0 Types 0/0/0/0/0/0/0/0/0 Lore% 3 Gallery% 11 Achievement% 10 Wizard Run 0 Options --------- Layout 1 ASCII 0 Keyboard 0 Movement Arrows Keybinds 0 Fullscreen 1 Font 24/Smallcaps Map View 50x35 Zoom Use 0% Tactical HUD 0 Map Filters NONE Filters NONE Steam 1 RUN: ceea8889-ed00-4420-9c28-0b1c379c9fdf